[Event "Live Chess"]
[Site "Chess.com"]
[Date "2023.05.20"]
[Round "-"]
[White "HoarseyHorsey"]
[Black "Balu13"]
[Result "1-0"]
[WhiteElo "1388"]
[BlackElo "837"]
[TimeControl "300"]
[EndTime "10:08:24 PDT"]
[Termination "HoarseyHorsey won by resignation"]

1. d4 {[%clk 0:04:59.5]} 1... d5 {[%clk 0:04:58.3]} 2. c4 {[%clk 0:04:58]} 2...
dxc4 {[%clk 0:04:56.9]} 3. e4 {[%clk 0:04:55.8]} 3... e5 {[%clk 0:04:50.8]} 4.
Nf3 {[%clk 0:04:50.3]} 4... exd4 {[%clk 0:04:45.5]} 5. Bxc4 {[%clk 0:04:49.3]}
5... c5 {[%clk 0:04:42.6]} 6. O-O {[%clk 0:04:45.1]} 6... Nf6 {[%clk 0:04:27.3]}
7. Re1 {[%clk 0:04:37.2]} 7... Qc7 {[%clk 0:04:00.2]} 8. e5 {[%clk 0:04:08.8]}
8... Ng4 {[%clk 0:03:53.6]} 9. Bf4 {[%clk 0:04:03.8]} 9... Be7 {[%clk
0:03:45.5]} 10. h3 {[%clk 0:03:57]} 10... O-O {[%clk 0:03:20.1]} 11. hxg4 {[%clk
0:03:54.7]} 11... Bxg4 {[%clk 0:03:19.5]} 12. Qd3 {[%clk 0:03:50.5]} 12... a6
{[%clk 0:03:03.9]} 13. Nbd2 {[%clk 0:03:42.4]} 13... b5 {[%clk 0:03:02.1]} 14.
Bd5 {[%clk 0:03:41.2]} 14... Ra7 {[%clk 0:02:59.6]} 15. Qe4 {[%clk 0:03:30.1]}
15... Nd7 {[%clk 0:02:58]} 16. e6 {[%clk 0:03:26.3]} 16... Bd6 {[%clk
0:02:46.8]} 17. exf7+ {[%clk 0:03:22.4]} 17... Rxf7 {[%clk 0:02:42.1]} 18. Bxf7+
{[%clk 0:03:00.3]} 18... Kxf7 {[%clk 0:02:39.8]} 19. Bxd6 {[%clk 0:02:59.2]}
19... Qxd6 {[%clk 0:02:30.8]} 20. Qxg4 {[%clk 0:02:55.8]} 20... Nf6 {[%clk
0:02:23.7]} 21. Qf5 {[%clk 0:02:42.3]} 21... g6 {[%clk 0:02:19]} 22. Qe5 {[%clk
0:02:34.1]} 22... Qd7 {[%clk 0:02:00]} 23. Ne4 {[%clk 0:02:22.9]} 23... Ng4
{[%clk 0:01:57.4]} 24. Qf4+ {[%clk 0:02:16.3]} 24... Qf5 {[%clk 0:01:49.5]} 25.
Qxf5+ {[%clk 0:02:13]} 25... gxf5 {[%clk 0:01:49.2]} 26. Ng3 {[%clk 0:02:07.9]}
26... d3 {[%clk 0:01:39.5]} 27. Nxf5 {[%clk 0:02:01.8]} 27... c4 {[%clk
0:01:33.1]} 28. Ne3 {[%clk 0:01:59.6]} 28... Nxe3 {[%clk 0:01:23.9]} 29. Rxe3
{[%clk 0:01:58.1]} 29... d2 {[%clk 0:01:22]} 30. Nxd2 {[%clk 0:01:56.5]} 30...
Rd7 {[%clk 0:01:10.4]} 31. Nf3 {[%clk 0:01:54.5]} 31... Rd2 {[%clk 0:01:03]} 32.
Nxd2 {[%clk 0:01:52.6]} 1-0

[Event "Live Chess"]
[Site "Chess.com"]
[Date "2023.05.20"]
[Round "-"]
[White "flyingpuffins"]
[Black "AttackingSnowLeopard"]
[Result "0-1"]
[WhiteElo "1958"]
[BlackElo "2060"]
[TimeControl "300"]
[EndTime "10:08:27 PDT"]
[Termination "AttackingSnowLeopard won by checkmate"]

1. d4 {[%clk 0:04:56.8]} 1... d5 {[%clk 0:04:58]} 2. e4 {[%clk 0:04:55.2]} 2...
dxe4 {[%clk 0:04:55.3]} 3. Nc3 {[%clk 0:04:53.7]} 3... Nf6 {[%clk 0:04:52.9]} 4.
Bg5 {[%clk 0:04:52.6]} 4... Bf5 {[%clk 0:04:48.7]} 5. f3 {[%clk 0:04:49.9]} 5...
exf3 {[%clk 0:04:47]} 6. Qxf3 {[%clk 0:04:49.8]} 6... e6 {[%clk 0:04:41.2]} 7.
Qxb7 {[%clk 0:04:43.6]} 7... Nbd7 {[%clk 0:04:40.6]} 8. Bb5 {[%clk 0:03:49.5]}
8... Bd6 {[%clk 0:04:32.6]} 9. Bxd7+ {[%clk 0:03:40.5]} 9... Kxd7 {[%clk
0:04:31.1]} 10. Nf3 {[%clk 0:03:30.1]} 10... Qb8 {[%clk 0:04:21.9]} 11. Qb5+
{[%clk 0:03:04.6]} 11... Qxb5 {[%clk 0:04:20.3]} 12. Nxb5 {[%clk 0:03:04.5]}
12... Ne4 {[%clk 0:04:16.5]} 13. O-O {[%clk 0:02:59]} 13... Rab8 {[%clk
0:04:08.8]} 14. Nxd6 {[%clk 0:02:54.5]} 14... cxd6 {[%clk 0:04:08.2]} 15. b3
{[%clk 0:02:51.1]} 15... Nxg5 {[%clk 0:03:55.8]} 16. Nxg5 {[%clk 0:02:49.7]}
16... f6 {[%clk 0:03:55.4]} 17. Nf3 {[%clk 0:02:15.9]} 17... Bxc2 {[%clk
0:03:53.8]} 18. Rac1 {[%clk 0:02:10.2]} 18... Be4 {[%clk 0:03:52.3]} 19. Nd2
{[%clk 0:02:09.1]} 19... Bd5 {[%clk 0:03:51.7]} 20. Nc4 {[%clk 0:02:03.2]} 20...
Rhc8 {[%clk 0:03:48.2]} 21. Ne3 {[%clk 0:01:53.5]} 21... Be4 {[%clk 0:03:45]}
22. Kf2 {[%clk 0:01:47.2]} 22... d5 {[%clk 0:03:44]} 23. Kg3 {[%clk 0:01:30.3]}
23... Rxc1 {[%clk 0:03:40.6]} 24. Rxc1 {[%clk 0:01:29]} 24... Rc8 {[%clk
0:03:40.2]} 25. Rxc8 {[%clk 0:01:22.8]} 25... Kxc8 {[%clk 0:03:40.1]} 26. Kf4
{[%clk 0:01:22]} 26... Kd7 {[%clk 0:03:37.7]} 27. g4 {[%clk 0:01:17.4]} 27...
Kd6 {[%clk 0:03:37.1]} 28. h4 {[%clk 0:01:16.6]} 28... e5+ {[%clk 0:03:36.2]}
29. dxe5+ {[%clk 0:01:15.5]} 29... fxe5+ {[%clk 0:03:35.3]} 30. Kg5 {[%clk
0:01:13.8]} 30... Bd3 {[%clk 0:03:28.3]} 31. h5 {[%clk 0:01:08.5]} 31... h6+
{[%clk 0:03:24.6]} 32. Kh4 {[%clk 0:01:07.3]} 32... d4 {[%clk 0:03:24.1]} 33.
Nd1 {[%clk 0:00:55.7]} 33... e4 {[%clk 0:03:21.3]} 34. g5 {[%clk 0:00:54.6]}
34... hxg5+ {[%clk 0:03:19.7]} 35. Kxg5 {[%clk 0:00:54.5]} 35... e3 {[%clk
0:03:19]} 36. Nb2 {[%clk 0:00:45.8]} 36... Bb5 {[%clk 0:03:14.5]} 37. a4 {[%clk
0:00:30.9]} 37... Ba6 {[%clk 0:03:10]} 38. Kg6 {[%clk 0:00:28.6]} 38... e2
{[%clk 0:03:09.4]} 39. Kxg7 {[%clk 0:00:25.9]} 39... e1=Q {[%clk 0:03:08.2]} 40.
h6 {[%clk 0:00:24.7]} 40... Qe7+ {[%clk 0:03:07.7]} 41. Kh8 {[%clk 0:00:23.8]}
41... d3 {[%clk 0:03:06.4]} 42. Nc4+ {[%clk 0:00:22.1]} 42... Bxc4 {[%clk
0:03:03.3]} 43. bxc4 {[%clk 0:00:20.8]} 43... d2 {[%clk 0:03:03]} 44. a5 {[%clk
0:00:20]} 44... d1=Q {[%clk 0:03:01.5]} 45. c5+ {[%clk 0:00:19.2]} 45... Kc7
{[%clk 0:03:00.1]} 46. a6 {[%clk 0:00:12.2]} 46... Qdd8# {[%clk 0:03:00]} 0-1

[Event "Live Chess"]
[Site "Chess.com"]
[Date "2023.05.20"]
[Round "-"]
[White "stevefairhurst"]
[Black "HD_IN4k"]
[Result "1-0"]
[WhiteElo "544"]
[BlackElo "278"]
[TimeControl "300"]
[EndTime "10:08:38 PDT"]
[Termination "stevefairhurst won by checkmate"]

1. e4 {[%clk 0:04:59.5]} 1... f5 {[%clk 0:04:53.2]} 2. exf5 {[%clk 0:04:56.7]}
2... e5 {[%clk 0:04:51.7]} 3. Nf3 {[%clk 0:04:54.9]} 3... Nc6 {[%clk 0:04:43.1]}
4. d4 {[%clk 0:04:50.5]} 4... d5 {[%clk 0:04:42.5]} 5. dxe5 {[%clk 0:04:49.1]}
5... Nxe5 {[%clk 0:04:39]} 6. Nxe5 {[%clk 0:04:47.7]} 6... Bd6 {[%clk
0:04:38.3]} 7. Ng4 {[%clk 0:04:38.2]} 7... h5 {[%clk 0:04:32.1]} 8. Qe2+ {[%clk
0:04:28.7]} 8... Be7 {[%clk 0:04:26]} 9. Ne5 {[%clk 0:04:24.7]} 9... Bd6 {[%clk
0:04:23.1]} 10. Nc6+ {[%clk 0:04:18.1]} 10... Ne7 {[%clk 0:04:22.6]} 11. Nxd8
{[%clk 0:04:16.5]} 11... Kxd8 {[%clk 0:04:16.8]} 12. Bg5 {[%clk 0:04:08.9]}
12... Re8 {[%clk 0:04:14.9]} 13. Nc3 {[%clk 0:04:02.7]} 13... Kd7 {[%clk
0:04:07.2]} 14. Qe6+ {[%clk 0:03:47.3]} 14... Kc6 {[%clk 0:04:02.7]} 15. Qf7
{[%clk 0:03:36.1]} 15... Bxf5 {[%clk 0:03:54.2]} 16. Bd3 {[%clk 0:03:30.3]}
16... Bxd3 {[%clk 0:03:51.5]} 17. cxd3 {[%clk 0:03:29]} 17... d4 {[%clk
0:03:49.7]} 18. Ne4 {[%clk 0:03:24.1]} 18... b5 {[%clk 0:03:38.9]} 19. Qf3
{[%clk 0:03:18.2]} 19... Nd5 {[%clk 0:03:26.3]} 20. O-O-O {[%clk 0:03:01.7]}
20... Be7 {[%clk 0:03:10.3]} 21. Bxe7 {[%clk 0:02:55.5]} 21... Rxe7 {[%clk
0:03:09]} 22. Rde1 {[%clk 0:02:43.2]} 22... a5 {[%clk 0:03:00.4]} 23. Qg3 {[%clk
0:02:33.1]} 23... b4 {[%clk 0:02:46.8]} 24. Qg6+ {[%clk 0:02:21.5]} 24... Kb7
{[%clk 0:02:40.3]} 25. Qxh5 {[%clk 0:02:15.5]} 25... Nf6 {[%clk 0:02:38]} 26.
Qf3 {[%clk 0:02:05.5]} 26... Nxe4 {[%clk 0:02:32.4]} 27. dxe4 {[%clk 0:02:03.9]}
27... a4 {[%clk 0:02:26.7]} 28. Re2 {[%clk 0:01:57.2]} 28... c5 {[%clk
0:02:23.7]} 29. Rhe1 {[%clk 0:01:55.1]} 29... c4 {[%clk 0:02:20.2]} 30. e5+
{[%clk 0:01:52.3]} 30... Kb8 {[%clk 0:02:17.8]} 31. Qf4 {[%clk 0:01:43.9]} 31...
b3 {[%clk 0:02:15.4]} 32. axb3 {[%clk 0:01:40.1]} 32... axb3 {[%clk 0:02:13.9]}
33. Qxd4 {[%clk 0:01:34.6]} 33... Ra1+ {[%clk 0:02:11.8]} 34. Kd2 {[%clk
0:01:31.4]} 34... Rxe1 {[%clk 0:02:10.5]} 35. Rxe1 {[%clk 0:01:30.2]} 35... Rc7
{[%clk 0:02:05.7]} 36. Qd8+ {[%clk 0:01:19.8]} 36... Kb7 {[%clk 0:02:01.2]} 37.
e6 {[%clk 0:01:17.2]} 37... c3+ {[%clk 0:01:59.4]} 38. bxc3 {[%clk 0:01:15.6]}
38... b2 {[%clk 0:01:55.7]} 39. Rb1 {[%clk 0:01:14.2]} 39... Rc8 {[%clk
0:01:02.4]} 40. e7 {[%clk 0:01:10.3]} 40... Rxd8+ {[%clk 0:00:42.1]} 41. exd8=Q
{[%clk 0:00:58.3]} 41... Ka6 {[%clk 0:00:39.7]} 42. Rxb2 {[%clk 0:00:57.1]}
42... Ka7 {[%clk 0:00:36.4]} 43. Qd7+ {[%clk 0:00:53.8]} 43... Ka8 {[%clk
0:00:33]} 44. Qb7# {[%clk 0:00:50.7]} 1-0

[Event "Live Chess"]
[Site "Chess.com"]
[Date "2023.05.20"]
[Round "-"]
[White "NAZRIZ1977"]
[Black "martynstanley"]
[Result "1-0"]
[WhiteElo "2132"]
[BlackElo "991"]
[TimeControl "300"]
[EndTime "10:08:40 PDT"]
[Termination "NAZRIZ1977 won by checkmate"]

1. c4 {[%clk 0:04:57.2]} 1... e6 {[%clk 0:04:59.1]} 2. g3 {[%clk 0:04:56.3]}
2... d5 {[%clk 0:04:58.4]} 3. Bg2 {[%clk 0:04:55.6]} 3... dxc4 {[%clk
0:04:57.1]} 4. Nf3 {[%clk 0:04:54.1]} 4... c6 {[%clk 0:04:56.1]} 5. O-O {[%clk
0:04:52.8]} 5... b6 {[%clk 0:04:54]} 6. Na3 {[%clk 0:04:50]} 6... Bb7 {[%clk
0:04:52.7]} 7. Nxc4 {[%clk 0:04:49.1]} 7... Qc7 {[%clk 0:04:51.5]} 8. d3 {[%clk
0:04:48]} 8... c5 {[%clk 0:04:50.5]} 9. Bf4 {[%clk 0:04:46.9]} 9... Qc8 {[%clk
0:04:45.8]} 10. a4 {[%clk 0:04:44.3]} 10... h6 {[%clk 0:04:44.5]} 11. h4 {[%clk
0:04:42.2]} 11... g5 {[%clk 0:04:42.8]} 12. hxg5 {[%clk 0:04:39.8]} 12... hxg5
{[%clk 0:04:42.1]} 13. Bxg5 {[%clk 0:04:38.9]} 13... f6 {[%clk 0:04:40]} 14. Bf4
{[%clk 0:04:31.6]} 14... e5 {[%clk 0:04:36.3]} 15. Bd2 {[%clk 0:04:27]} 15...
Ne7 {[%clk 0:04:31.8]} 16. Nd6+ {[%clk 0:04:24.5]} 16... Kd8 {[%clk 0:04:28.3]}
17. Nxc8 {[%clk 0:04:23.5]} 17... Bxc8 {[%clk 0:04:27.7]} 18. Rc1 {[%clk
0:04:22.8]} 18... Kc7 {[%clk 0:04:23.9]} 19. b4 {[%clk 0:04:21.6]} 19... Bb7
{[%clk 0:04:22.8]} 20. bxc5 {[%clk 0:04:20]} 20... bxc5 {[%clk 0:04:21.6]} 21.
Rxc5+ {[%clk 0:04:19]} 21... Nec6 {[%clk 0:04:20.5]} 22. Qc2 {[%clk 0:04:16.2]}
22... Bxc5 {[%clk 0:04:19.1]} 23. Qxc5 {[%clk 0:04:15.1]} 23... Na6 {[%clk
0:04:18.2]} 24. Qc2 {[%clk 0:04:10.6]} 24... Rh7 {[%clk 0:04:16.4]} 25. Rc1
{[%clk 0:04:07.3]} 25... Rah8 {[%clk 0:04:13.7]} 26. Nxe5 {[%clk 0:04:02.7]}
26... fxe5 {[%clk 0:04:12.4]} 27. Bxc6 {[%clk 0:04:01.8]} 27... Rh1+ {[%clk
0:04:06.9]} 28. Bxh1+ {[%clk 0:04:00.4]} 28... Kd7 {[%clk 0:04:01.2]} 29. Bxb7
{[%clk 0:03:59]} 29... Rh7 {[%clk 0:03:55.5]} 30. Bxa6 {[%clk 0:03:57.1]} 30...
Ke6 {[%clk 0:03:54.1]} 31. Qc6+ {[%clk 0:03:56]} 31... Kf5 {[%clk 0:03:52.9]}
32. Qe4+ {[%clk 0:03:55.2]} 32... Kf6 {[%clk 0:03:51.3]} 33. Qxh7 {[%clk
0:03:54.2]} 33... Ke6 {[%clk 0:03:49.9]} 34. Rc6+ {[%clk 0:03:53.4]} 34... Kd5
{[%clk 0:03:48.9]} 35. Qe4# {[%clk 0:03:52.7]} 1-0

[Event "Live Chess"]
[Site "Chess.com"]
[Date "2023.05.20"]
[Round "-"]
[White "jameskwong"]
[Black "YrrriKharkiv"]
[Result "1-0"]
[WhiteElo "2162"]
[BlackElo "2081"]
[TimeControl "300"]
[EndTime "10:08:42 PDT"]
[Termination "jameskwong won by resignation"]

1. d4 {[%clk 0:04:59.2]} 1... Nf6 {[%clk 0:04:57.2]} 2. c4 {[%clk 0:04:55.9]}
2... c5 {[%clk 0:04:56]} 3. d5 {[%clk 0:04:53.4]} 3... b5 {[%clk 0:04:55.3]} 4.
cxb5 {[%clk 0:04:51.7]} 4... a6 {[%clk 0:04:53.8]} 5. bxa6 {[%clk 0:04:49.9]}
5... Bxa6 {[%clk 0:04:53]} 6. Nc3 {[%clk 0:04:49.5]} 6... g6 {[%clk 0:04:51.7]}
7. e4 {[%clk 0:04:48.7]} 7... Bxf1 {[%clk 0:04:50]} 8. Kxf1 {[%clk 0:04:48.6]}
8... d6 {[%clk 0:04:49.5]} 9. g3 {[%clk 0:04:47.8]} 9... Bg7 {[%clk 0:04:48.7]}
10. Kg2 {[%clk 0:04:47.1]} 10... h5 {[%clk 0:04:48.1]} 11. Nf3 {[%clk
0:04:45.4]} 11... Nbd7 {[%clk 0:04:45.8]} 12. h3 {[%clk 0:04:42.1]} 12... Qb6
{[%clk 0:04:41.8]} 13. Qe2 {[%clk 0:04:26.3]} 13... h4 {[%clk 0:04:34]} 14. Nxh4
{[%clk 0:04:16]} 14... Rxh4 {[%clk 0:04:31.5]} 15. gxh4 {[%clk 0:04:14.2]} 15...
Rb8 {[%clk 0:04:15]} 16. a4 {[%clk 0:04:04.1]} 16... Ra8 {[%clk 0:04:08.4]} 17.
Nb5 {[%clk 0:03:49.9]} 17... Nh5 {[%clk 0:03:57.5]} 18. f4 {[%clk 0:03:32]}
18... c4 {[%clk 0:03:48]} 19. Qxc4 {[%clk 0:03:26.8]} 19... Nc5 {[%clk
0:03:36.3]} 20. Ra3 {[%clk 0:02:57.7]} 20... Kd7 {[%clk 0:03:23.3]} 21. b4
{[%clk 0:02:54.6]} 21... Nxa4 {[%clk 0:03:13.6]} 22. Be3 {[%clk 0:02:37.2]}
22... Qb7 {[%clk 0:03:09.9]} 23. Rc1 {[%clk 0:02:23.1]} 23... Nc5 {[%clk
0:02:18.2]} 24. bxc5 {[%clk 0:02:17.4]} 24... dxc5 {[%clk 0:02:14]} 25. Rxa8
{[%clk 0:02:12.4]} 25... Qxa8 {[%clk 0:02:11]} 26. Qxc5 {[%clk 0:02:10.6]} 26...
Qb7 {[%clk 0:01:57.6]} 27. Qc6+ {[%clk 0:02:04.8]} 27... Qxc6 {[%clk 0:01:56.6]}
28. dxc6+ {[%clk 0:02:04]} 1-0

[Event "Live Chess"]
[Site "Chess.com"]
[Date "2023.05.20"]
[Round "-"]
[White "Hussamalhaidar"]
[Black "cedarsmaster"]
[Result "1-0"]
[WhiteElo "1001"]
[BlackElo "1682"]
[TimeControl "300"]
[EndTime "10:08:54 PDT"]
[Termination "Hussamalhaidar won on time"]

1. b3 {[%clk 0:04:53.4]} 1... e5 {[%clk 0:04:56.9]} 2. Bb2 {[%clk 0:04:52]} 2...
d6 {[%clk 0:04:55.7]} 3. Nf3 {[%clk 0:04:47.5]} 3... f5 {[%clk 0:04:53.7]} 4. e3
{[%clk 0:04:45]} 4... Nf6 {[%clk 0:04:52.2]} 5. Be2 {[%clk 0:04:39.4]} 5... c6
{[%clk 0:04:50.3]} 6. d4 {[%clk 0:04:35.1]} 6... e4 {[%clk 0:04:44.9]} 7. Nfd2
{[%clk 0:04:25.4]} 7... Be7 {[%clk 0:04:42.1]} 8. c4 {[%clk 0:04:21.1]} 8... O-O
{[%clk 0:04:39.1]} 9. Nc3 {[%clk 0:04:11.1]} 9... a5 {[%clk 0:04:35.4]} 10. a4
{[%clk 0:04:03.4]} 10... Na6 {[%clk 0:04:32.6]} 11. Ba3 {[%clk 0:03:54]} 11...
Kh8 {[%clk 0:04:13.6]} 12. O-O {[%clk 0:03:50.2]} 12... Be6 {[%clk 0:04:00.4]}
13. d5 {[%clk 0:03:46.9]} 13... cxd5 {[%clk 0:03:55.5]} 14. cxd5 {[%clk
0:03:43.3]} 14... Nxd5 {[%clk 0:03:52.8]} 15. Ndxe4 {[%clk 0:03:35.9]} 15...
Nxc3 {[%clk 0:03:28.6]} 16. Nxc3 {[%clk 0:03:33.6]} 16... Nc5 {[%clk 0:03:07.3]}
17. Bxc5 {[%clk 0:03:29]} 17... dxc5 {[%clk 0:03:04.8]} 18. Bc4 {[%clk
0:03:21.4]} 18... Bxc4 {[%clk 0:02:55.4]} 19. bxc4 {[%clk 0:03:19.8]} 19... Bf6
{[%clk 0:02:52.7]} 20. Rc1 {[%clk 0:03:02.6]} 20... Bxc3 {[%clk 0:02:24]} 21.
Rxc3 {[%clk 0:03:00]} 21... Qxd1 {[%clk 0:02:14.8]} 22. Rxd1 {[%clk 0:02:58.4]}
22... Rad8 {[%clk 0:02:12.5]} 23. Rd5 {[%clk 0:02:52]} 23... b6 {[%clk 0:02:04]}
24. h3 {[%clk 0:02:47.2]} 24... Rxd5 {[%clk 0:01:51.2]} 25. cxd5 {[%clk
0:02:45]} 25... Rd8 {[%clk 0:01:49.7]} 26. Rd3 {[%clk 0:02:39]} 26... Rd6 {[%clk
0:01:46.4]} 27. g4 {[%clk 0:02:34.7]} 27... fxg4 {[%clk 0:01:32.2]} 28. hxg4
{[%clk 0:02:31.2]} 28... g5 {[%clk 0:01:11.3]} 29. f4 {[%clk 0:02:26.3]} 29...
gxf4 {[%clk 0:00:55.3]} 30. e4 {[%clk 0:02:21.2]} 30... Kg7 {[%clk 0:00:40.9]}
31. e5 {[%clk 0:02:18.4]} 31... Rg6 {[%clk 0:00:38.2]} 32. d6 {[%clk 0:02:08.3]}
32... Rxg4+ {[%clk 0:00:25.6]} 33. Kf2 {[%clk 0:02:06.3]} 33... Kf7 {[%clk
0:00:24]} 34. d7 {[%clk 0:02:04.7]} 34... Rg8 {[%clk 0:00:20.9]} 35. d8=Q {[%clk
0:02:02.2]} 35... Rxd8 {[%clk 0:00:19.3]} 36. Rxd8 {[%clk 0:02:00.8]} 36... Ke6
{[%clk 0:00:17.9]} 37. Re8+ {[%clk 0:01:59.3]} 37... Kd7 {[%clk 0:00:15.8]} 38.
Rh8 {[%clk 0:01:57.9]} 38... c4 {[%clk 0:00:14.3]} 39. Rxh7+ {[%clk 0:01:56.2]}
39... Ke6 {[%clk 0:00:13]} 40. Rh5 {[%clk 0:01:53.7]} 40... c3 {[%clk 0:00:11]}
41. Ke2 {[%clk 0:01:49.9]} 41... c2 {[%clk 0:00:09.6]} 42. Kd2 {[%clk
0:01:49.1]} 42... f3 {[%clk 0:00:09.3]} 43. Kxc2 {[%clk 0:01:46.7]} 43... f2
{[%clk 0:00:08.2]} 44. Rh1 {[%clk 0:01:45.3]} 44... Kxe5 {[%clk 0:00:07]} 45.
Kd2 {[%clk 0:01:43.8]} 45... Kd4 {[%clk 0:00:06.1]} 46. Ke2 {[%clk 0:01:42.7]}
46... Kc5 {[%clk 0:00:04.9]} 47. Kxf2 {[%clk 0:01:41.8]} 47... Kb4 {[%clk
0:00:02.8]} 48. Rh4+ {[%clk 0:01:41]} 48... Ka3 {[%clk 0:00:00.2]} 49. Ke3
{[%clk 0:01:38.9]} 1-0

[Event "Live Chess"]
[Site "Chess.com"]
[Date "2023.05.20"]
[Round "-"]
[White "SupremeTactician"]
[Black "djw60"]
[Result "1-0"]
[WhiteElo "2415"]
[BlackElo "2138"]
[TimeControl "300"]
[EndTime "10:09:00 PDT"]
[Termination "SupremeTactician won by resignation"]

1. e4 {[%clk 0:04:59.2]} 1... e5 {[%clk 0:04:58.1]} 2. Nf3 {[%clk 0:04:58]} 2...
Nc6 {[%clk 0:04:56.6]} 3. Nc3 {[%clk 0:04:57.5]} 3... Nf6 {[%clk 0:04:55.2]} 4.
Bb5 {[%clk 0:04:57.2]} 4... Bd6 {[%clk 0:04:50.9]} 5. O-O {[%clk 0:04:54.9]}
5... a6 {[%clk 0:04:49.6]} 6. Bxc6 {[%clk 0:04:53.9]} 6... dxc6 {[%clk
0:04:48.8]} 7. d4 {[%clk 0:04:46.5]} 7... exd4 {[%clk 0:04:47.9]} 8. Qxd4 {[%clk
0:04:46.4]} 8... Be7 {[%clk 0:04:23.6]} 9. Be3 {[%clk 0:04:32.2]} 9... O-O
{[%clk 0:04:19.9]} 10. Rad1 {[%clk 0:04:30.1]} 10... Ng4 {[%clk 0:04:12.8]} 11.
Qxd8 {[%clk 0:04:28]} 11... Rxd8 {[%clk 0:04:09.4]} 12. Bf4 {[%clk 0:04:26.5]}
12... Bd6 {[%clk 0:03:56]} 13. e5 {[%clk 0:04:22.9]} 13... Be7 {[%clk
0:03:55.2]} 14. h3 {[%clk 0:04:21.6]} 14... Nh6 {[%clk 0:03:52.1]} 15. g4 {[%clk
0:03:42.1]} 15... Be6 {[%clk 0:03:49]} 16. a3 {[%clk 0:03:35]} 16... Kf8 {[%clk
0:03:47.2]} 17. Rfe1 {[%clk 0:03:29.1]} 17... Ng8 {[%clk 0:03:44.6]} 18. Nd4
{[%clk 0:03:22.6]} 18... c5 {[%clk 0:03:34.1]} 19. Nxe6+ {[%clk 0:03:09.4]}
19... fxe6 {[%clk 0:03:32.7]} 20. Ne4 {[%clk 0:03:09.2]} 20... h6 {[%clk
0:03:20.7]} 21. Be3 {[%clk 0:03:07]} 21... b6 {[%clk 0:03:19.1]} 22. f4 {[%clk
0:03:06.3]} 22... Rd5 {[%clk 0:03:12.4]} 23. c4 {[%clk 0:03:01.3]} 23... Rxd1
{[%clk 0:03:08.9]} 24. Rxd1 {[%clk 0:03:01.2]} 24... Rd8 {[%clk 0:03:07.4]} 25.
Rxd8+ {[%clk 0:02:56.4]} 25... Bxd8 {[%clk 0:03:05.9]} 26. Kf2 {[%clk 0:02:54]}
26... Ne7 {[%clk 0:03:00.8]} 27. Bxc5 {[%clk 0:02:32.7]} 27... bxc5 {[%clk
0:02:57]} 28. Nxc5 {[%clk 0:02:32.6]} 28... Kf7 {[%clk 0:02:51.7]} 29. Nxa6
{[%clk 0:02:27.7]} 29... g5 {[%clk 0:02:48.1]} 30. fxg5 {[%clk 0:02:15.3]} 30...
hxg5 {[%clk 0:02:46.7]} 31. Kf3 {[%clk 0:02:14.8]} 31... Nc6 {[%clk 0:02:40.3]}
32. Ke4 {[%clk 0:02:13.5]} 32... Na5 {[%clk 0:02:32.7]} 33. c5 {[%clk
0:01:19.2]} 33... Nc4 {[%clk 0:02:25.8]} 34. b4 {[%clk 0:00:57.5]} 34... Nxa3
{[%clk 0:02:24.4]} 35. Kd4 {[%clk 0:00:54.8]} 35... c6 {[%clk 0:02:02.3]} 36.
Nb8 {[%clk 0:00:49.2]} 36... Nb5+ {[%clk 0:02:00.4]} 37. Ke4 {[%clk 0:00:28.2]}
37... Na7 {[%clk 0:01:56.3]} 38. Nd7 {[%clk 0:00:24.8]} 38... Be7 {[%clk
0:01:49.7]} 39. Nb6 {[%clk 0:00:22.6]} 39... Ke8 {[%clk 0:01:42.1]} 40. Nc4
{[%clk 0:00:22.1]} 40... Kd7 {[%clk 0:01:38.2]} 41. Nd2 {[%clk 0:00:20.9]} 41...
Nb5 {[%clk 0:01:35.9]} 42. Nf3 {[%clk 0:00:19.9]} 42... Nc3+ {[%clk 0:01:33.8]}
43. Kd4 {[%clk 0:00:19.2]} 43... Ne2+ {[%clk 0:01:32.3]} 44. Ke3 {[%clk
0:00:18.1]} 44... Nc3 {[%clk 0:01:21.3]} 45. Kd3 {[%clk 0:00:16.9]} 45... Nd5
{[%clk 0:01:20]} 46. Kc4 {[%clk 0:00:16.4]} 46... Nf4 {[%clk 0:01:18]} 47. b5
{[%clk 0:00:15.7]} 47... cxb5+ {[%clk 0:01:15.2]} 48. Kxb5 {[%clk 0:00:15.2]}
48... Nxh3 {[%clk 0:01:14.3]} 49. Nd4 {[%clk 0:00:14.4]} 49... Bd8 {[%clk
0:01:10.2]} 50. c6+ {[%clk 0:00:13.7]} 50... Ke7 {[%clk 0:01:08.7]} 51. Ka6
{[%clk 0:00:13.1]} 51... Bc7 {[%clk 0:01:06.4]} 52. Nf3 {[%clk 0:00:11.6]} 52...
Nf2 {[%clk 0:01:00.2]} 53. Nxg5 {[%clk 0:00:10.4]} 53... Bxe5 {[%clk 0:00:59.2]}
54. Ne4 {[%clk 0:00:10.1]} 54... Nxg4 {[%clk 0:00:56.7]} 55. Kb7 {[%clk
0:00:08.9]} 55... Bd6 {[%clk 0:00:49]} 56. Nxd6 {[%clk 0:00:07.2]} 56... Kxd6
{[%clk 0:00:27.7]} 57. c7 {[%clk 0:00:07.1]} 1-0

[Event "Live Chess"]
[Site "Chess.com"]
[Date "2023.05.20"]
[Round "-"]
[White "SimpleHarmonic1"]
[Black "Conradical12"]
[Result "0-1"]
[WhiteElo "2055"]
[BlackElo "1504"]
[TimeControl "300"]
[EndTime "10:09:01 PDT"]
[Termination "Conradical12 won by resignation"]

1. e4 {[%clk 0:04:59]} 1... e5 {[%clk 0:04:58.9]} 2. Nf3 {[%clk 0:04:58.6]} 2...
Nc6 {[%clk 0:04:58]} 3. Bb5 {[%clk 0:04:56.1]} 3... Nf6 {[%clk 0:04:57.3]} 4. d3
{[%clk 0:04:54.4]} 4... Bc5 {[%clk 0:04:56.2]} 5. O-O {[%clk 0:04:52.7]} 5... d6
{[%clk 0:04:55.5]} 6. c3 {[%clk 0:04:51.3]} 6... O-O {[%clk 0:04:53.9]} 7. b4
{[%clk 0:04:48.4]} 7... Bb6 {[%clk 0:04:52.6]} 8. h3 {[%clk 0:04:48]} 8... Be6
{[%clk 0:04:51.1]} 9. Nbd2 {[%clk 0:04:44.6]} 9... Qd7 {[%clk 0:04:48.8]} 10. a4
{[%clk 0:04:42.4]} 10... a6 {[%clk 0:04:47.7]} 11. Bc4 {[%clk 0:04:40]} 11...
Bxc4 {[%clk 0:04:46]} 12. Nxc4 {[%clk 0:04:38.3]} 12... Ne7 {[%clk 0:04:45.1]}
13. Nxb6 {[%clk 0:04:34.6]} 13... cxb6 {[%clk 0:04:43.7]} 14. Be3 {[%clk
0:04:34.5]} 14... Rac8 {[%clk 0:04:40.2]} 15. Qd2 {[%clk 0:04:21.2]} 15... Qc7
{[%clk 0:04:37.9]} 16. Rfc1 {[%clk 0:04:18.9]} 16... d5 {[%clk 0:04:36.6]} 17.
exd5 {[%clk 0:02:34.2]} 17... Nexd5 {[%clk 0:04:34.3]} 18. c4 {[%clk 0:02:30.2]}
18... Ne7 {[%clk 0:04:32.9]} 19. Bg5 {[%clk 0:02:26.5]} 19... e4 {[%clk
0:04:21.4]} 20. Bxf6 {[%clk 0:02:21.9]} 20... exf3 {[%clk 0:04:20.2]} 21. Bxe7
{[%clk 0:02:14.6]} 21... Qxe7 {[%clk 0:04:20.1]} 22. g3 {[%clk 0:02:10.8]} 22...
Qd7 {[%clk 0:04:16.9]} 23. d4 {[%clk 0:02:06.1]} 23... Qxh3 {[%clk 0:04:14.8]}
0-1